Cogmind - Beta 16 --- EXPLORER MODE // 2025.11.21 @ 09:51:59 Player: K.K.Y. Result: Destroyed by 7R-Q2P(R) with Subdweller Laser Performance ------------- Evolutions (0) 0 Regions Visited (3) 600 Robots Destroyed (39) 195 Value Destroyed (927) 927 Prototype IDs (14) 280 Alien Tech Used (0) 0 Bonus (30) 30 TOTAL SCORE: 2032 Bonus ------- Follower Combat Kills 30 Cogmind --------- Core Integrity 0/250 Matter 275/300 Energy 46/100 System Corruption 0% Temperature Cool (6) Movement Walking (280) Ox2 Location -10/Subcaves Parts ------- > --- POWER (1) -------- (None) > --- PROPULSION (2) --- Makeshift Leg > --- UTILITY (3) ------ High-capacity Storage Unit Terrain Scan Processor > --- WEAPON (2) ------- Subdweller Laser Improved Assault Rifle > --- INVENTORY (20) --- Meta Core Cooling System Seismic Detector Scrap Shield Shield Generator Makeshift Hacking Suite Subdweller Beam Cannon Subdweller Beam Cannon Battle Rifle Barrage Gun Peak State ------------ > --- POWER ------------ Ion Engine > --- PROPULSION ------- Carbon-fiber Leg Makeshift Leg > --- UTILITY ---------- High-capacity Storage Unit Improved Terrain Scanner Terrain Scan Processor > --- WEAPON ----------- Battle Cannon Mining Laser > --- INVENTORY -------- Meta Core Aluminum Leg Cooling System Structural Scanner Seismic Detector Scrap Shield Shield Generator Makeshift Hacking Suite Subdweller Laser [Rating: 20] Favorites ----------- Power Ion Engine Engine Ion Engine Propulsion Aluminum Leg Leg Aluminum Leg Utility Terrain Scan Processor Device Improved Terrain Scanner Storage High-capacity Storage Unit Processor Terrain Scan Processor Weapon Mining Laser Energy Gun Subdweller Laser Ballistic Gun Improved Assault Rifle Ballistic Cannon Battle Cannon Special Weapon Mining Laser Build | -11 -10 -10 -10 ------- Run | Yrd Mat Min Sub Slots Evolved 1 | . 1 . . Power . | . . . . Propulsion . | . . . . Utility 1 | . 1 . . Weapon . | . . . . Parts Attached 25 | 6 9 3 7 Power 2 | 1 . 1 . Engine 2 | 1 . 1 . Core . | . . . . Reactor . | . . . . Propulsion 7 | 2 3 . 2 Treads . | . . . . Leg 7 | 2 3 . 2 Wheel . | . . . . Hover . | . . . . Flight . | . . . . Utility 9 | 1 5 1 2 Device 3 | . 1 1 1 Storage 2 | 1 . . 1 Processor 4 | . 4 . . Hackware . | . . . . Protection . | . . . . Artifact . | . . . . Weapon 7 | 2 1 1 3 Energy Gun 3 | 2 . . 1 Energy Cannon . | . . . . Ballistic Gun 2 | . 1 . 1 Ballistic Cannon 1 | . . . 1 Launcher . | . . . . Special Weapon 1 | . . 1 . Impact Weapon . | . . . . Slashing Weapon . | . . . . Piercing Weapon . | . . . . Special Melee Weapon . | . . . . Unidentified Prototypes . | . . . . Parts Lost 11 | . 3 1 7 Power 2 | . 1 . 1 Propulsion 2 | . 1 . 1 Utility 2 | . . . 2 Weapon 5 | . 1 1 3 Highest Loss Streak 2 | . 2 1 2 To Critical Strikes . | . . . . Average Backups 6 | 2 4 5 7 Power . | . . . . Propulsion . | . . . . Utility 5 | 2 4 5 5 Weapon 1 | . . . 1 Tool/Special . | . . . . Unused Backups 10 | . . . 10 Power . | . . . . Propulsion . | . . . . Utility 5 | . . . 5 Weapon 4 | . . . 4 Tool/Special 1 | . . . 1 Average Slot Usage (%) 94 | . 82 91 97 Engine 8 | . 5 4 10 Leg 24 | . 24 25 24 Device 11 | . 10 12 11 Storage 7 | . . . 11 Processor 16 | . 22 25 12 Energy Gun 4 | . 16 . 3 Ballistic Gun 4 | . 2 12 2 Ballistic Cannon 6 | . . . 9 Special Weapon 7 | . . 10 8 Peak Build Rating 20 | 6 11 14 20 Average Rating 14 | 2 8 12 16 On Entrance 7 | . 5 11 14 Avg Prop Armor Cover (%) . | . . . . Naked Turns . | . . . . Heaviest Build 53 | 9 10 10 53 Greatest Support 35 | 20 20 20 35 Greatest Overweight (x) 2 | 2 . . 2 Average Overweight (x) . | . . . 1 Largest Inventory Capacity 20 | 10 5 5 20 Average Capacity 14 | 5 5 5 18 Most Carried 12 | 5 5 5 12 Average Carried 7 | 3 4 5 8 Final Capacity 20 | 5 5 5 20 Final Carried 11 | 3 5 5 11 Class Distribution -------------------- 100% | Hacker-Mutant Dominant Class ---------------- Hacker-Mutant | -10/Materials Hacker-Mutant | -10/Mines Hacker-Mutant | -10/Subcaves Resources | -11 -10 -10 -10 ----------- Run | Yrd Mat Min Sub Matter Collected 778 | 219 171 81 307 Remotely . | . . . . Salvage Created 1041 | . 661 114 266 Parts 81 | . 50 10 21 Haulers Intercepted 2 | . 2 . . Recyclers Shooed 1 | . 1 . . Parts Field Recycled . | . . . . Retrieved Matter . | . . . . Parts Self-Destructed . | . . . . Prevented . | . . . . Parts Restored . | . . . . Kills | -11 -10 -10 -10 ------- Run | Yrd Mat Min Sub Combat Hostiles Destroyed 22 | . 10 1 11 Guns 15 | . 8 1 6 Cannons 5 | . . . 5 AOE 2 | . 2 . . Classes Destroyed 11 | . 7 1 3 Worker 1 | . 1 . . Builder 6 | . 6 . . Tunneler 5 | . 2 3 . Hauler 2 | . 2 . . Watcher 3 | . 3 . . Swarmer 4 | . 4 . . Grunt 7 | . 6 . 1 Sentry 1 | . . . 1 Demolisher 1 | . . 1 . Artisan 1 | . . . 1 Subdweller 9 | . . . 9 Best Kill Streak 6 | . 6 1 2 Combat Bots Only 4 | . 4 1 2 Max Kills in Single Turn 3 | . 3 1 1 Gunslinging 1 | . 1 . . Exploded 2 | . 2 . . Melee . | . . . . Uniques/NPCs Destroyed . | . . . . Combat | -11 -10 -10 -10 -------- Run | Yrd Mat Min Sub Hostile Shots Fired 165 | . 85 1 79 Missed 37 | . 18 . 19 Hits 128 | . 67 1 60 Projectile 128 | . 67 1 60 AOE 2 | . . 2 . Critical Strikes 7 | . 3 . 4 Part Disruptions 1 | . 1 . . Damage Taken 1256 | . 456 44 756 Core 250 | . 94 12 144 Absorbed by Shields . | . . . . Ignored by Resistances 774 | . 296 26 452 Core Remaining (%) 100 | 100 . . . Volleys Fired 166 | . 67 17 82 Largest 2 | . 2 2 2 Hottest 133 | . 90 123 133 Shots Fired 249 | . 94 20 135 Gun 197 | . 94 17 86 Cannon 37 | . . . 37 Launcher . | . . . . Special 15 | . . 3 12 Kinetic 90 | . . 17 73 Thermal 128 | . 63 3 62 Explosive . | . . . . Electromagnetic 31 | . 31 . . Robot Hit Streak 30 | . 15 12 30 Robot Miss Streak 3 | . 3 . 2 Penetration Max . | . . . . Secondary Targets 2 | . 1 . 1 Max Gunslinging Chain 1 | . 1 . 1 Shots Hit Robots 151 | . 69 7 75 Core Hits 60 | . 35 5 20 Critical Kills . | . . . . Critical Parts Destroyed . | . . . . Critical Strikes 4 | . 4 . . Burn 4 | . 4 . . Melee Attacks . | . . . . Impact . | . . . . Slashing . | . . . . Piercing . | . . . . Sneak Attacks . | . . . . Combat Hostiles . | . . . . Follow-up Attacks . | . . . . Damage Inflicted 2736 | . 1070 106 1560 Guns 1884 | . 851 99 934 Cannons 602 | . . . 602 Explosions 219 | . 219 . . Melee . | . . . . Ramming 7 | . . 7 . Kinetic 1032 | . . 99 933 Thermal 1314 | . 687 . 627 Explosive . | . . . . Electromagnetic 383 | . 383 . . Impact . | . . . . Slashing . | . . . . Piercing . | . . . . Highest Corruption . | . . . . Average Corruption . | . . . . Corruption Purged . | . . . . Corruption Blocked . | . . . . Overload Shots . | . . . . Overflow Damage . | . . . . Projectiles . | . . . . Explosions . | . . . . Melee . | . . . . Knockbacks 2 | . . . 2 Impact . | . . . . Kinetic 2 | . . . 2 Secondary . | . . . . Self-Inflicted Damage 18 | . 18 . . Shots 1 | . 1 . . Rammed . | . . . . Targets Rammed 4 | . . 4 . Kicked 4 | . . 4 . Crushed . | . . . . Highest Temperature 346 | . 346 20 . Average Temperature 97 | . 100 10 . Received Heat Transfer 471 | . 342 . 129 Effects 1 | . 1 . . Damage (minor) 1 | . 1 . . Siege Activations . | . . . . Martial Activations . | . . . . Shielding Activations . | . . . . Robots Disrupted . | . . . . Combat Hostiles . | . . . . Robots Corrupted . | . . . . Combat Hostiles . | . . . . Parts Fried 1 | . 1 . . Impact Corruptions . | . . . . Robots Melted . | . . . . Combat Hostiles . | . . . . Parts Melted 5 | . 3 . 2 Heat Transferred 2899 | . 2124 . 775 Parts Sabotaged . | . . . . Parts Stolen . | . . . . Parts Stripped . | . . . . Power Chain Reactions 3 | . 3 . . Alert | -11 -10 -10 -10 ------- Run | Yrd Mat Min Sub Maximum Alert Level . | . . . . Low Security (%) 100 | 100 100 100 . Level 1 . | . . . . Level 2 . | . . . . Level 3 . | . . . . Level 4 . | . . . . Level 5 . | . . . . High Security . | . . . . Max Security . | . . . . Peak Influence 101 | . 101 23 . Initial . | . . . . Average 5 | . 13 . . Influence Increases 472 | . 352 80 40 Destroy 0b10 Robot/C 260 | . 200 20 40 Destroy 0b10 Robot/NC 85 | . 70 15 . Destroy Leader 60 | . 50 10 . Successful Hack 3 | . 3 . . Disable Machine 24 | . 8 16 . Destroy Structure 25 | . 6 19 . Lose Combat Pursuer 15 | . 15 . . Influence Decreases 472 | . 352 80 40 Time Decay 413 | . 293 80 40 Lost Part 18 | . 18 . . Purge Threat 41 | . 41 . . Squads Dispatched 1 | . 1 . . Investigation 1 | . 1 . . Extermination . | . . . . Reinforcement . | . . . . Assault . | . . . . Garrison . | . . . . Intercept . | . . . . Searches Triggered . | . . . . Construction Impeded . | . . . . Haulers Reinforced . | . . . . Active Scanning Responses . | . . . . Cargo Convoy Interrupts . | . . . . Stealth | -11 -10 -10 -10 --------- Run | Yrd Mat Min Sub Distress Signals 1 | . 1 . . Communications Jammed . | . . . . Distress Signals . | . . . . Times Spotted 34 | . 16 5 13 Peak Tracking Total 4 | . 4 4 2 Tactical Retreats 1 | . 1 . . Traps | -11 -10 -10 -10 ------- Run | Yrd Mat Min Sub Traps Triggered 2 | . 2 . . Indirectly . | . . . . Trap Hack Attempts . | . . . . Triggered . | . . . . Disarmed . | . . . . Reprogrammed 4 | . 4 . . Reused . | . . . . Traps Extracted . | . . . . Installed . | . . . . Triggered . | . . . . Machines | -11 -10 -10 -10 ---------- Run | Yrd Mat Min Sub Machines Disabled 7 | . 2 4 1 Max in Single Turn 1 | . 1 1 1 Machines Repaired . | . . . . Machines Dismantled . | . . . . Machines Sabotaged . | . . . . Overloaded Fab Kills . | . . . . Hacking | -11 -10 -10 -10 --------- Run | Yrd Mat Min Sub Machines Accessed 8 | . 6 . 2 Terminals 6 | . 6 . . Fabricators . | . . . . Repair Stations . | . . . . Recycling Units . | . . . . Scanalyzers . | . . . . Garrison Access . | . . . . Total Hacks 30 | . 17 . 13 Successful 24 | . 11 . 13 Failed 6 | . 6 . . Catastrophic . | . . . . Database Lockouts . | . . . . Manual 2 | . 2 . . Terminals 17 | . 17 . . Fabricators . | . . . . Repair Stations . | . . . . Recycling Units . | . . . . Scanalyzers . | . . . . Garrison Access . | . . . . Terminal Hacks 24 | . 11 . 13 Record 12 | . . . 12 Prototype ID Bank 1 | . 1 . . Unreport Threat 1 | . 1 . . Locate Traps 1 | . 1 . . Reprogram Traps 1 | . 1 . . Patrol Status 1 | . 1 . . Hauler Manifests 3 | . 3 . . Registered Components 1 | . 1 . . Zone Layout 2 | . 2 . . Proto ID Catalog 1 | . . . 1 Fabricator Hacks . | . . . . Repair Station Hacks . | . . . . Recycling Unit Hacks . | . . . . Scanalyzer . | . . . . Garrison Access Hacks . | . . . . Unauthorized Hacks . | . . . . Terminals . | . . . . Fabricators . | . . . . Repair Stations . | . . . . Recycling Units . | . . . . Scanalyzers . | . . . . Garrison Access . | . . . . Data Cores Recovered . | . . . . Used . | . . . . Hacking Detections 4 | . 4 . . Full Trace Events 1 | . 1 . . Feedback Events . | . . . . Feedback Blocked . | . . . . Robot Schematics Acquired . | . . . . Robots Built . | . . . . Authchips . | . . . . Time . | . . . . Total Robot Build Rating . | . . . . Part Schematics Acquired . | . . . . Parts Built . | . . . . Authchips . | . . . . Time . | . . . . Total Part Build Rating . | . . . . Part Studies Acquired . | . . . . Parts Repaired . | . . . . Time . | . . . . Parts Recycled . | . . . . Recycled Matter . | . . . . Retrieved Matter . | . . . . Retrieved Components . | . . . . Parts Scanalyzed . | . . . . Part Schematics Acquired . | . . . . Parts Damaged . | . . . . Bothacking | -11 -10 -10 -10 ------------ Run | Yrd Mat Min Sub Used RIF Installer . | . . . . Robots Hacked . | . . . . Non-combat . | . . . . Combat . | . . . . Robot Hacks Applied . | . . . . Relay Couplers Released . | . . . . Fabnet Peak Effective % . | . . . . Robots Rewired . | . . . . Allies Hacked . | . . . . Hacks Repelled . | . . . . Allies | -11 -10 -10 -10 -------- Run | Yrd Mat Min Sub Total Allies 5 | . . 5 . Largest Group 3 | . . 3 2 Highest-Rated Group 42 | . . 42 42 Highest-Rated Ally 31 | . . 31 31 Total Orders . | . . . . Ally Attacks 22 | . . 18 4 Total Damage 245 | . . 162 83 Kills 5 | . . 4 1 Allies Corrupted . | . . . . Allies Melted . | . . . . Intel | -11 -10 -10 -10 ------- Run | Yrd Mat Min Sub Active Infowar (turns) 8513 | . 1003 1718 5792 Terrain 7045 | . 1003 1718 4324 Structural 1468 | . . . 1468 Robot Analysis Total . | . . . . Derelict Logs Recovered 1 | . . . 1 Drone Launches . | . . . . Drone Recoveries . | . . . . Exploration | -11 -10 -10 -10 ------------- Run | Yrd Mat Min Sub Turns Passed 8890 | 58 1139 1718 5975 Spaces Moved 3201 | 51 770 909 1471 Core 34 | 31 3 . . Treads . | . . . . Legs 3167 | 20 767 909 1471 Wheels . | . . . . Hover . | . . . . Flight . | . . . . Fastest Speed 50 | 50 50 120 120 Average Speed 157 | 88 119 120 203 Slowest Speed 280 | 150 120 120 280 Overloaded Moves . | . . . . Propulsion Burnouts . | . . . . Robots Hopped . | . . . . Potential Cave-ins . | . . . . Cave-ins Triggered . | . . . . Exploration Rate (%) 64 | 3 80 102 73 Regions Visited 3 Branch Regions 2 Pre-discovered Areas . | . . . . Known Exits Taken 3 | 1 1 1 . Unknown Exits Taken . | . . . . Scrap Searched 1 | . . . 1 Spaces Dug . | . . . . Terrain Destroyed 24 | . 5 19 . Melee . | . . . . Projectile . | . . . . AOE 24 | . 5 19 . Terrain Rammed . | . . . . Walls Destroyed . | . . . . Machines Disabled . | . . . . Actions | -11 -10 -10 -10 --------- Run | Yrd Mat Min Sub Total 6753 | 64 890 1509 4290 Wait 3314 | . 28 576 2710 Move 3198 | 50 769 908 1471 Hop . | . . . . Pick Up 29 | 7 10 . 12 Fast Attach 9 | 1 4 2 2 Attach 15 | 5 5 . 5 Detach 1 | 1 . . . Swap 8 | . 4 1 3 Drop 9 | . 3 1 5 Fire 166 | . 67 17 82 Melee . | . . . . Ram . | . . . . Kick 4 | . . 4 . Crush . | . . . . Escape Stasis . | . . . . Rewire . | . . . . Trap . | . . . . Miscellaneous . | . . . . Route ------- -11/Scrapyard -10/Materials (discovered 6 exits: *Mat x3 / *Min x2 / Sub) -10/Mines (discovered 3 exits: *Mat x2 / *Sub) -10/Subcaves (discovered 2 exits: *Mat / Rec) History --------- Turn | Location | Event 8 | -11/Scrapyard | Identified exit to Materials 8 | -11/Scrapyard | Discovered exit to Materials (range 15) 59 | -11/Scrapyard | Entered Materials 59 | -10/Materials | Evolved 1 slot: Utility x1 124 | -10/Materials | Identified exit to Mines 124 | -10/Materials | Discovered exit to Mines (range 16) 251 | -10/Materials | Identified exit to Materials 251 | -10/Materials | Discovered exit to Materials (range 15) 313 | -10/Materials | Discovered exit to Mines (range 15) 356 | -10/Materials | Build established: Hacker-Mutant 402 | -10/Materials | Discovered exit to Materials (range 14) 560 | -10/Materials | Discovered exit to Materials (range 15) 694 | -10/Materials | Identified exit to Subcaves 694 | -10/Materials | Discovered exit to Subcaves (range 9) 1198 | -10/Materials | Entered Mines 1207 | -10/Mines | Assisted by bots powering up and referring to "LRC-V3" 1219 | -10/Mines | Assembled infested the area 1224 | -10/Mines | Assisted by a Guerilla fighting off Assembled 1320 | -10/Mines | Lost 4 allies 1856 | -10/Mines | Discovered exit to Subcaves (range 5) 1900 | -10/Mines | A weapon hastily lodged in a ceiling crevice suddenly fell to the ground 1927 | -10/Mines | Discovered exit to Materials (range 12) 2004 | -10/Mines | Discovered exit to Materials (range 15) 2916 | -10/Mines | Entered Subcaves 2916 | -10/Subcaves | Accompanied by 2 allies 2921 | -10/Subcaves | Led the pair of lost Derelicts to an unsafe place 3518 | -10/Subcaves | Visited Clippyterm 3526 | -10/Subcaves | Learned Factory garrison access intel 4331 | -10/Subcaves | Core integrity fell below 50% 5089 | -10/Subcaves | Shifting Twisted Machinery released Sub. Power Source 5123 | -10/Subcaves | Shifting Twisted Machinery released Piercing Trap 5124 | -10/Subcaves | Identified exit to Recycling 5320 | -10/Subcaves | Visited 4L-MR0's lab 5338 | -10/Subcaves | Found Meta Core 6793 | -10/Subcaves | Disturbed a concealed Subdweller 7920 | -10/Subcaves | Core integrity fell below 20% 8127 | -10/Subcaves | Shifting Twisted Machinery released Sub. Beam Cannon 8192 | -10/Subcaves | Shifting Twisted Machinery released Barrage Gun 8855 | -10/Subcaves | Identified exit to Materials 8855 | -10/Subcaves | Discovered exit to Materials (range 15) 8891 | -10/Subcaves | Destroyed by 7R-Q2P(R) with Subdweller Laser Last Messages --------------- 08459_ Subatomizers dissect the Sub. Power Source. 08467_ 74-ZN8(R) destroyed. 08474_ Subatomizers dissect the Sub. Power Source. 08478_ Acquired 25 matter. 08486_ OE-3G3(O) puts together Scrap Shield. 08488_ Subatomizers dissect the Sub. Power Source. 08559_ Subatomizers dissect the Sub. Optics. 08726_ Carbon-fiber Leg destroyed. 08730_ Structural Scanner destroyed. 08734_ G-34 Mercenary destroyed. 08734_ Switching to secondary target: Y-45 Defender. 08737_ Y-45 Defender destroyed. 08757_ Acquired 35 matter. 08760_ Acquired 7 matter. 08855_ EXIT=FOUND: MATERIALS 08876_ Sub. Machine Gun destroyed. Map ----- +----------------------------------------------------+ | | | | | | | ?????????????????????????????????????????????????? | | ?????????????????????????????????????????????????? | | ?????????????????????????????????????????????????? | | ?????????????????????????????????????????????????? | | ?????????????????????????????????????????????????? | | ?????????????????????????????????????????????????? | | ?????????????????????????????????????????????????? | | ?????????????????????????????????????????????????? | | ?????????????????????????????????????????????????? | | ?????????????????????????????????????????????????? | | ?????????????????????????????????????????????????? | | ?????????????????????????????????????????????????? | | ?????????????????????????????????????????????????? | | ?????????????????????????????????????????????????? | | ???????????????????####??????????????????????????? | | ???????????????????# ??????????????????????????? | | ???????????????????# #?????????????????????????? | | ???????????????????# #????????????????????????? | | ???????????????????# #####???????????????????? | | ??????????????????## #??####?????????????? | | ???????????????"### ### ###???????????? | | ???????????????""" #???????????? | | ?????????? @ #???????????? | | ?????????? ### #???????????? | | ???????????????????????## ##???????????? | | ???????????????????????## ##???????????? | | ??????????????????????## #???????????? | | ?????????????????????## #??????????? | | ????????????????????## #??????????? | | ????????????????????# ## #??????????? | | ???????????????????## #??#??????????? | | ???????????????????# ## R# #????????????? | | ???????????????????# ### ###? R ???????????? | | ???????????????????## #?? ##????